fUSD/lending_fUSD_20250309
["ID","MTS","AMOUNT","RATE_DAILY","PERIOD"]
[355767249,1741546243240,-762.25,8.84e-05,2]
[355767251,1741546243250,-1384.0,8.84e-05,2]
[355767253,1741546243260,-691.27,8.84e-05,2]
[355767255,1741546243270,-910.69,8.84e-05,2]
[355767257,1741546243279,-2775.17,8.84e-05,2]
[355767259,1741546243297,-716.61,8.84e-05,2]
[355767260,1741546243307,-749.45,8.84e-05,2]
[355767263,1741546243317,-514.26567893,8.84e-05,2]
[355767264,1741546243327,-500.0,8.84e-05,2]
[355767266,1741546243337,-1055.07,8.84e-05,2]
[355767269,1741546243347,-500.0,8.84e-05,2]
[355767270,1741546243356,-500.0,8.84e-05,2]
[355767272,1741546243365,-790.29,8.84e-05,2]
[355767274,1741546243375,-500.0,8.84e-05,2]
[355767276,1741546243385,-3223.78,8.84e-05,2]
[355767279,1741546243396,-500.0,8.84e-05,2]
[355767280,1741546243406,-500.0,8.84e-05,2]
[355767283,1741546243416,-1917.15,8.84e-05,2]
[355767284,1741546243426,-500.0,8.84e-05,2]
[355767287,1741546243435,-836.6,8.84e-05,2]
[355767288,1741546243445,-11738.53053846,8.922e-05,2]
[355767290,1741546243455,-500.0,8.94e-05,2]
[355767292,1741546243465,-500.0,8.94e-05,2]
[355767294,1741546243474,-500.0,8.94e-05,2]
[355767296,1741546243484,-500.0,8.94e-05,2]
[355767298,1741546243494,-500.0,8.94e-05,2]
[355767300,1741546243503,-500.0,8.94e-05,2]
[355767302,1741546243512,-500.0,8.94e-05,2]
[355767304,1741546243522,-500.0,8.94e-05,2]
[355767306,1741546243536,-500.0,8.94e-05,2]
[355767308,1741546243547,-500.0,8.94e-05,2]
[355767310,1741546243557,-500.0,8.94e-05,2]
[355767312,1741546243566,-500.0,8.94e-05,2]
[355767314,1741546243575,-500.0,8.94e-05,2]
[355767316,1741546243585,-220.92995944,8.94e-05,2]
[355767318,1741546243596,-406.43,8.94e-05,2]
[355767320,1741546243607,-500.0,8.94e-05,2]
[355767322,1741546243617,-500.0,8.94e-05,2]
[355767324,1741546243626,-500.0,8.94e-05,2]
[355767326,1741546243636,-257.15033983,8.94e-05,2]
[355767328,1741546243645,-500.0,8.94e-05,2]
[355767330,1741546243655,-500.0,8.94e-05,2]
[355767332,1741546243665,-500.0,8.94e-05,2]
[355767334,1741546243674,-500.0,8.94e-05,2]
[355767336,1741546243683,-500.0,8.94e-05,2]
[355767337,1741546243693,-500.0,8.94e-05,2]
[355767338,1741546243702,-500.0,8.94e-05,2]
[355767339,1741546243711,-500.0,8.94e-05,2]
[355767340,1741546243721,-500.0,8.94e-05,2]
[355767341,1741546243730,-500.0,8.94e-05,2]
[355767342,1741546243739,-500.0,8.94e-05,2]
[355767343,1741546243749,-500.0,8.94e-05,2]
[355767344,1741546243759,-500.0,8.94e-05,2]
[355767345,1741546243768,-500.0,8.94e-05,2]
[355767347,1741546243777,-500.0,8.94e-05,2]
[355767349,1741546243790,-500.0,8.94e-05,2]
[355767351,1741546243799,-500.0,8.94e-05,2]
[355767353,1741546243808,-500.0,8.94e-05,2]
[355767355,1741546243818,-500.0,8.94e-05,2]
[355767357,1741546243827,-533.57,8.94e-05,2]
[355767359,1741546243837,-500.0,8.94e-05,2]
[355767361,1741546243846,-500.0,8.94e-05,2]
[355767363,1741546243856,-500.0,8.94e-05,2]
[355767365,1741546243866,-558.3,8.94e-05,2]
[355767367,1741546243878,-500.0,8.94e-05,2]
[355767369,1741546243888,-500.0,8.94e-05,2]
[355767371,1741546243899,-500.0,8.94e-05,2]
[355767373,1741546243908,-620.9,8.94e-05,2]
[355767375,1741546243922,-500.0,8.94e-05,2]
[355767377,1741546243931,-1460.67,8.94e-05,2]
[355767379,1741546243942,-1807.73,8.94e-05,2]
[355767381,1741546243953,-500.0,8.94e-05,2]
[355767383,1741546243966,-500.0,8.94e-05,2]
[355767385,1741546243975,-500.0,8.94e-05,2]
[355767387,1741546243985,-988.75,8.94e-05,2]
[355767389,1741546243994,-775.25,8.94e-05,2]
[355767391,1741546244003,-500.0,8.94e-05,2]
[355767393,1741546244012,-6266.56,8.94e-05,2]
[355767395,1741546244022,-972.04,8.94e-05,2]
[355767396,1741546244035,-500.0,8.94e-05,2]
[355767398,1741546244044,-500.0,8.94e-05,2]
[355767401,1741546244054,-500.0,8.94e-05,2]
[355767403,1741546244064,-582.58,8.94e-05,2]
[355767404,1741546244073,-699.42,8.94e-05,2]
[355767406,1741546244083,-650.4,8.94e-05,2]
[355767408,1741546244092,-540.28,8.94e-05,2]
[355767410,1741546244102,-500.0,8.94e-05,2]
[355767412,1741546244111,-507.25,8.94e-05,2]
[355767414,1741546244122,-500.0,8.94e-05,2]
[355767416,1741546244132,-1116.24,8.94e-05,2]
[355767418,1741546244141,-827.44,8.94e-05,2]
[355767420,1741546244151,-500.0,8.94e-05,2]
[355767422,1741546244160,-1000.0,8.94e-05,2]
[355767424,1741546244170,-500.0,8.94e-05,2]
[355767426,1741546244180,-1287.21,8.94e-05,2]
[355767428,1741546244189,-1894.46,8.94e-05,2]
[355767430,1741546244198,-500.0,8.94e-05,2]
[355767432,1741546244207,-516.45907688,8.94e-05,2]
[355767434,1741546244216,-609.1,8.94e-05,2]
[355767436,1741546244225,-1067.83,8.94e-05,2]
[355767438,1741546244235,-7219.83,8.94e-05,2]
[355767440,1741546244246,-500.0,8.94e-05,2]
[355767442,1741546244256,-500.0,8.94e-05,2]
[355767444,1741546244265,-500.0,8.94e-05,2]
[355767446,1741546244275,-500.0,8.94e-05,2]
[355767448,1741546244288,-840.88,8.94e-05,2]
[355767450,1741546244298,-500.0,8.94e-05,2]
[355767452,1741546244308,-618.88,8.94e-05,2]
[355767454,1741546244318,-500.0,8.94e-05,2]
[355767456,1741546244327,-500.0,8.94e-05,2]
[355767458,1741546244336,-542.26,8.94e-05,2]
[355767459,1741546244347,-500.0,8.94e-05,2]
[355767461,1741546244356,-500.0,8.94e-05,2]
[355767463,1741546244367,-500.0,8.94e-05,2]
[355767465,1741546244376,-500.0,8.94e-05,2]
[355767467,1741546244387,-572.16,8.94e-05,2]
[355767469,1741546244402,-500.0,8.94e-05,2]
[355767471,1741546244411,-462.91681813,8.94e-05,2]
[355767473,1741546244421,-728.96,8.94e-05,2]
[355767475,1741546244431,-665.83,8.94e-05,2]
[355767477,1741546244441,-500.0,8.94e-05,2]
[355767479,1741546244451,-500.0,8.94e-05,2]
[355767481,1741546244461,-685.31,8.94e-05,2]
[355767483,1741546244470,-500.0,8.94e-05,2]
[355767485,1741546244480,-650.04,8.94e-05,2]
[355767487,1741546244489,-867.79,8.94e-05,2]
[355767489,1741546244500,-500.0,8.94e-05,2]
[355767491,1741546244511,-1586.9,8.94e-05,2]
[355767493,1741546244520,-1017.98,8.94e-05,2]
[355767495,1741546244530,-500.0,8.94e-05,2]
[355767497,1741546244553,-500.0,8.94e-05,2]
[355767517,1741546244739,-1820.59,8.94e-05,2]
[355767519,1741546244750,-500.0,8.94e-05,2]
[355767521,1741546244759,-500.0,8.94e-05,2]
[355767523,1741546244769,-8385.91,8.94e-05,2]
[355767525,1741546244778,-500.0,8.94e-05,2]
[355767527,1741546244792,-500.0,8.94e-05,2]
[355767529,1741546244802,-898.26,8.94e-05,2]
[355767531,1741546244812,-500.0,8.94e-05,2]
[355767533,1741546244822,-1000.0,9e-05,2]
[355767535,1741546244832,-550.0,9e-05,2]
[355767537,1741546244842,-1000.0,9e-05,2]
[355767539,1741546244852,-550.0,9.029e-05,2]
[355767541,1741546244865,-150.0,9.029e-05,2]
[355767543,1741546244875,-550.0,9.029e-05,2]
[355767545,1741546244885,-255.0,9.04e-05,2]
[355767547,1741546244895,-500.0,9.041e-05,2]
[355767549,1741546244905,-500.0,9.041e-05,2]
[355767551,1741546244915,-500.0,9.041e-05,2]
[355767553,1741546244924,-500.0,9.041e-05,2]
[355767555,1741546244934,-545.81,9.041e-05,2]
[355767557,1741546244945,-500.0,9.041e-05,2]
[355767559,1741546244955,-500.0,9.041e-05,2]
[355767561,1741546244965,-500.0,9.041e-05,2]
[355767563,1741546244975,-567.56,9.041e-05,2]
[355767565,1741546244985,-524.34380918,9.041e-05,2]
[355767567,1741546244995,-500.0,9.041e-05,2]
[355767569,1741546245005,-500.0,9.041e-05,2]
[355767571,1741546245019,-500.0,9.041e-05,2]
[355767573,1741546245028,-500.0,9.113e-05,2]
[355767575,1741546245042,-802.79,9.113e-05,2]
[355767577,1741546245052,-509.56,9.113e-05,2]
[355767579,1741546245062,-422.24,9.113e-05,2]
[355767581,1741546245071,-705.16,9.114e-05,2]
[355767583,1741546245080,-574.70738577,9.114e-05,2]
[355767585,1741546245090,-1127.93,9.114e-05,2]
[355767587,1741546245099,-153.821542,9.114e-05,2]
[355767589,1741546245109,-1079.62,9.114e-05,2]
[355767591,1741546245118,-366.55963369,9.114e-05,2]
[355767593,1741546245128,-1660.3,9.114e-05,2]
[355767595,1741546245137,-285.055882,9.114e-05,2]
[355767597,1741546245146,-588.89,9.114e-05,2]
[355767598,1741546245155,-545.12,9.114e-05,2]
[355767599,1741546245165,-761.97,9.114e-05,2]
[355767600,1741546245175,-1262.31,9.114e-05,2]
[355767601,1741546245185,-902.78,9.114e-05,2]
[355767602,1741546245194,-631.94,9.114e-05,2]
[355767603,1741546245204,-1277.74,9.114e-05,2]
[355767604,1741546245213,-500.0,9.114e-05,2]
[355767605,1741546245222,-914.53,9.114e-05,2]
[355767606,1741546245231,-709.59,9.114e-05,2]
[355767608,1741546245241,-500.0,9.114e-05,2]
[355767610,1741546245250,-1716.53,9.114e-05,2]
[355767612,1741546245259,-500.0,9.114e-05,2]
[355767614,1741546245269,-685.88,9.114e-05,2]
[355767616,1741546245279,-2303.87,9.114e-05,2]
[355767618,1741546245292,-803.96,9.114e-05,2]
[355767620,1741546245302,-500.0,9.114e-05,2]
[355767622,1741546245311,-1439.43,9.114e-05,2]
[355767624,1741546245322,-979.42,9.114e-05,2]
[355767626,1741546245331,-500.0,9.114e-05,2]
[355767628,1741546245342,-692.47,9.114e-05,2]
[355767630,1741546245352,-1150.4,9.114e-05,2]
[355767632,1741546245362,-4261.52,9.114e-05,2]
[355767634,1741546245371,-500.0,9.114e-05,2]
[355767636,1741546245381,-500.0,9.114e-05,2]
[355767638,1741546245390,-686.57,9.114e-05,2]
[355767640,1741546245400,-500.0,9.114e-05,2]
[355767642,1741546245409,-500.0,9.114e-05,2]
[355767644,1741546245419,-711.24,9.114e-05,2]
[355767646,1741546245429,-1125.72,9.114e-05,2]
[355767648,1741546245439,-1139.68,9.114e-05,2]
[355767650,1741546245448,-500.0,9.114e-05,2]
[355767652,1741546245457,-693.95,9.114e-05,2]
[355767654,1741546245467,-670.36,9.114e-05,2]
[355767656,1741546245477,-762.25,9.114e-05,2]
[355767658,1741546245487,-1384.0,9.114e-05,2]
[355767660,1741546245497,-691.27,9.114e-05,2]
[355767662,1741546245508,-910.69,9.114e-05,2]
[355767664,1741546245517,-2775.17,9.114e-05,2]
[355767666,1741546245527,-716.61,9.114e-05,2]
[355767668,1741546245540,-749.45,9.114e-05,2]
[355767670,1741546245549,-1055.07,9.114e-05,2]
[355767672,1741546245559,-500.0,9.114e-05,2]
[355767674,1741546245569,-500.0,9.114e-05,2]
[355767676,1741546245579,-790.29,9.114e-05,2]
[355767678,1741546245589,-500.0,9.114e-05,2]
[355767680,1741546245598,-3223.78,9.114e-05,2]
[355767682,1741546245608,-514.26,9.114e-05,2]
[355767684,1741546245618,-1917.15,9.114e-05,2]
[355767686,1741546245628,-500.0,9.114e-05,2]
[355767688,1741546245637,-836.6,9.114e-05,2]
[355767690,1741546245647,-1146.83,9.192e-05,2]
[355767692,1741546245656,-500.0,9.214e-05,2]
[355767694,1741546245666,-500.0,9.214e-05,2]
[355767696,1741546245675,-500.0,9.214e-05,2]
[355767698,1741546245685,-262.78054885,9.214e-05,2]
[355767700,1741546245695,-500.0,9.214e-05,2]
[355767702,1741546245706,-500.0,9.214e-05,2]
[355767704,1741546245716,-218.38,9.214e-05,2]
[355767706,1741546245726,-500.0,9.214e-05,2]
[355767708,1741546245735,-500.0,9.214e-05,2]
[355767710,1741546245746,-500.0,9.214e-05,2]
[355767712,1741546245756,-500.0,9.214e-05,2]
[355767714,1741546245765,-500.0,9.214e-05,2]
[355767716,1741546245775,-500.0,9.214e-05,2]
[355767717,1741546245788,-500.0,9.214e-05,2]
[355767720,1741546245798,-500.0,9.214e-05,2]
[355767722,1741546245807,-500.0,9.214e-05,2]
[355767724,1741546245817,-500.0,9.214e-05,2]
[355767726,1741546245827,-500.0,9.214e-05,2]
[355767728,1741546245837,-500.0,9.214e-05,2]
[355767729,1741546245846,-500.0,9.214e-05,2]
[355767732,1741546245856,-500.0,9.214e-05,2]
[355767734,1741546245867,-500.0,9.214e-05,2]
[355767735,1741546245879,-500.0,9.214e-05,2]
[355767738,1741546245889,-181.1074442,9.214e-05,2]
[355767739,1741546245899,-500.0,9.214e-05,2]
[355767741,1741546245909,-500.0,9.214e-05,2]
[355767743,1741546245919,-500.0,9.214e-05,2]
[355767745,1741546245928,-500.0,9.214e-05,2]
[355767747,1741546245938,-533.57,9.214e-05,2]
[355767749,1741546245951,-500.0,9.214e-05,2]
[355767751,1741546245960,-500.0,9.214e-05,2]
[355767753,1741546245970,-524.96,9.214e-05,2]
[355767755,1741546245980,-500.0,9.214e-05,2]
[355767757,1741546245991,-620.9,9.214e-05,2]
[355767759,1741546246002,-1460.67,9.214e-05,2]
[355767761,1741546246011,-1807.73,9.214e-05,2]
[355767763,1741546246021,-500.0,9.214e-05,2]
[355767766,1741546246032,-500.0,9.214e-05,2]
[355767767,1741546246044,-500.0,9.214e-05,2]
[355767769,1741546246054,-988.75,9.214e-05,2]
[355767771,1741546246064,-775.25,9.214e-05,2]
[355767774,1741546246074,-6266.56,9.214e-05,2]
[355767775,1741546246084,-972.04,9.214e-05,2]
[355767778,1741546246094,-574.41061837,9.214e-05,2]
[355767779,1741546246104,-500.0,9.214e-05,2]
[355767782,1741546246114,-582.58,9.214e-05,2]
[355767784,1741546246123,-699.42,9.214e-05,2]
[355767786,1741546246134,-650.4,9.214e-05,2]
[355767788,1741546246144,-540.28,9.214e-05,2]
[355767790,1741546246154,-500.0,9.214e-05,2]
[355767791,1741546246163,-507.25,9.214e-05,2]
[355767794,1741546246173,-1116.24,9.214e-05,2]
[355767795,1741546246183,-827.44,9.214e-05,2]
[355767797,1741546246193,-500.0,9.214e-05,2]
[355767800,1741546246203,-1000.0,9.214e-05,2]
[355767801,1741546246213,-544.32,9.214e-05,2]
[355767803,1741546246224,-1287.21,9.214e-05,2]
[355767805,1741546246234,-1894.46,9.214e-05,2]
[355767807,1741546246243,-1067.83,9.214e-05,2]
[355767810,1741546246253,-7219.83,9.214e-05,2]
[355767812,1741546246264,-500.0,9.214e-05,2]
[355767814,1741546246273,-500.0,9.214e-05,2]
[355767816,1741546246287,-500.0,9.214e-05,2]
[355767818,1741546246297,-500.0,9.214e-05,2]
[355767820,1741546246307,-840.88,9.214e-05,2]
[355767822,1741546246316,-588.27381875,9.214e-05,2]
[355767824,1741546246326,-500.0,9.214e-05,2]
[355767826,1741546246336,-542.26,9.214e-05,2]
[355767828,1741546246346,-500.0,9.214e-05,2]
[355767830,1741546246356,-500.0,9.214e-05,2]
[355767832,1741546246366,-500.0,9.214e-05,2]
[355767834,1741546246376,-572.16,9.214e-05,2]
[355767836,1741546246385,-728.96,9.214e-05,2]
[355767838,1741546246395,-665.83,9.214e-05,2]
[355767840,1741546246404,-500.0,9.214e-05,2]
[355767842,1741546246415,-500.0,9.214e-05,2]
[355767844,1741546246424,-685.31,9.214e-05,2]
[355767846,1741546246434,-500.0,9.214e-05,2]
[355767848,1741546246445,-650.04,9.214e-05,2]
[355767850,1741546246455,-500.0,9.214e-05,2]
[355767852,1741546246465,-1586.9,9.214e-05,2]
[355767854,1741546246474,-1017.98,9.214e-05,2]
[355767855,1741546246484,-500.0,9.214e-05,2]
[355767856,1741546246494,-1820.59,9.214e-05,2]
[355767857,1741546246504,-500.0,9.214e-05,2]
[355767858,1741546246513,-500.0,9.214e-05,2]
[355767859,1741546246522,-8385.91,9.214e-05,2]
[355767860,1741546246532,-500.0,9.214e-05,2]
[355767861,1741546246543,-500.0,9.214e-05,2]
[355767863,1741546246553,-898.26,9.214e-05,2]
[355767865,1741546246562,-500.0,9.214e-05,2]
[355767867,1741546246572,-1000.0,9.247e-05,2]
[355767868,1741546246581,-1278.0,9.255e-05,2]
[355767871,1741546246591,-2032.0,9.255e-05,2]
[355767872,1741546246601,-571.0,9.255e-05,2]
[355767874,1741546246610,-641.0,9.255e-05,2]
[355767876,1741546246620,-1459.0,9.255e-05,2]
[355767878,1741546246629,-786.0,9.255e-05,2]
[355767880,1741546246640,-1270.0,9.255e-05,2]
[355767882,1741546246650,-541.0,9.255e-05,2]
[355767884,1741546246659,-907.0,9.255e-05,2]
[355767886,1741546246669,-1428.0,9.255e-05,2]
[355767888,1741546246678,-4076.0,9.255e-05,2]
[355767890,1741546246688,-199.688,9.255e-05,2]
[355767892,1741546246697,-1012.0,9.255e-05,2]
[355767894,1741546246707,-3932.0,9.255e-05,2]
[355767896,1741546246717,-233.0,9.255e-05,2]
[355767898,1741546246727,-600.0,9.27e-05,2]
[355767900,1741546246737,-1723.739,9.27e-05,2]
[355767902,1741546246746,-1000.0,9.299e-05,2]
[355767904,1741546246755,-1000.0,9.306e-05,2]
[355767906,1741546246764,-1000.0,9.306e-05,2]
[355767908,1741546246774,-1000.0,9.31e-05,2]
[355767910,1741546246783,-500.0,9.315e-05,2]
[355767912,1741546246795,-500.0,9.315e-05,2]
[355767914,1741546246805,-177.55,9.315e-05,2]
[355767916,1741546246814,-554.99895548,9.315e-05,2]
[355767918,1741546246824,-545.81,9.315e-05,2]
[355767920,1741546246833,-500.0,9.315e-05,2]
[355767922,1741546246843,-500.0,9.315e-05,2]
[355767924,1741546246852,-150.0,9.318e-05,2]
[355767926,1741546246867,-150.0,9.322e-05,2]
[355767928,1741546246877,-150.0,9.322e-05,2]
[355767930,1741546246885,-150.0,9.328e-05,2]
[355767932,1741546246896,-150.0,9.328e-05,2]
[355767934,1741546246907,-150.0,9.33e-05,2]
[355767936,1741546246917,-150.0,9.335e-05,2]
[355767938,1741546246927,-150.0,9.336e-05,2]
[355767940,1741546246938,-150.0,9.337e-05,2]
[355767942,1741546246950,-150.0,9.34e-05,2]
[355767944,1741546246960,-150.0,9.341e-05,2]
[355767946,1741546246970,-1000.0,9.341e-05,2]
[355767948,1741546246980,-150.0,9.342e-05,2]
[355767950,1741546246991,-150.0,9.343e-05,2]
[355767952,1741546247000,-2501.90249056,9.343e-05,2]
[355767954,1741546247009,-150.0,9.346e-05,2]
[355767956,1741546247019,-150.0,9.349e-05,2]
[355767958,1741546247029,-150.0,9.35e-05,2]
[355767959,1741546247043,-150.0,9.355e-05,2]
[355767961,1741546247052,-150.0,9.359e-05,2]
[355767963,1741546247062,-150.0,9.36e-05,2]
[355767966,1741546247073,-233.95102441,9.361e-05,2]
[355767967,1741546247082,-150.0,9.365e-05,2]
[355767969,1741546247092,-150.0,9.367e-05,2]
[355767972,1741546247103,-150.0,9.372e-05,2]
[355767973,1741546247113,-150.0,9.374e-05,2]
[355767975,1741546247122,-150.0,9.375e-05,2]
[355767978,1741546247132,-150.0,9.376e-05,2]
[355767979,1741546247141,-150.0,9.378e-05,2]
[355767981,1741546247151,-150.0,9.382e-05,2]
[355767988,1741546247212,-150.0,9.382e-05,2]
[355767990,1741546247223,-150.0,9.385e-05,2]
[355767992,1741546247233,-150.0,9.387e-05,2]
[355767994,1741546247244,-150.0,9.387e-05,2]
[355767996,1741546247254,-500.0,9.387e-05,2]
[355767998,1741546247264,-802.79,9.387e-05,2]
[355768000,1741546247273,-509.56,9.387e-05,2]
[355768002,1741546247283,-705.16,9.388e-05,2]
[355768004,1741546247294,-1127.93,9.388e-05,2]
[355768006,1741546247303,-153.821542,9.388e-05,2]
[355768008,1741546247313,-1079.62,9.388e-05,2]
[355768010,1741546247323,-1660.3,9.388e-05,2]
[355768012,1741546247333,-285.055882,9.388e-05,2]
[355768015,1741546247345,-588.89,9.388e-05,2]
[355768017,1741546247355,-545.12,9.388e-05,2]
[355768019,1741546247364,-761.97,9.388e-05,2]
[355768021,1741546247373,-1262.31,9.388e-05,2]
[355768022,1741546247382,-902.78,9.388e-05,2]
[355768024,1741546247391,-631.94,9.388e-05,2]
[355768026,1741546247400,-1277.74,9.388e-05,2]
[355768028,1741546247410,-391.22402755,9.388e-05,2]
[355768030,1741546247419,-914.53,9.388e-05,2]
[355768032,1741546247428,-709.59,9.388e-05,2]
[355768034,1741546247437,-500.0,9.388e-05,2]
[355768036,1741546247447,-1716.53,9.388e-05,2]
[355768038,1741546247456,-685.88,9.388e-05,2]
[355768040,1741546247466,-2303.87,9.388e-05,2]
[355768042,1741546247476,-803.96,9.388e-05,2]
[355768044,1741546247485,-500.0,9.388e-05,2]
[355768046,1741546247495,-979.42,9.388e-05,2]
[355768048,1741546247505,-1439.43,9.388e-05,2]
[355768050,1741546247514,-500.0,9.388e-05,2]
[355768052,1741546247523,-692.47,9.388e-05,2]
[355768054,1741546247533,-1150.4,9.388e-05,2]
[355768055,1741546247545,-4261.52,9.388e-05,2]
[355768057,1741546247555,-500.0,9.388e-05,2]
[355768059,1741546247564,-686.57,9.388e-05,2]
[355768062,1741546247575,-500.0,9.388e-05,2]
[355768064,1741546247584,-500.0,9.388e-05,2]
[355768066,1741546247595,-711.24,9.388e-05,2]
[355768068,1741546247605,-1125.72,9.388e-05,2]
[355768070,1741546247615,-1139.68,9.388e-05,2]
[355768072,1741546247624,-500.0,9.388e-05,2]
[355768073,1741546247633,-693.95,9.388e-05,2]
[355768075,1741546247643,-670.36,9.388e-05,2]
[355768078,1741546247653,-762.25,9.388e-05,2]
[355768079,1741546247663,-1384.0,9.388e-05,2]
[355768081,1741546247672,-691.27,9.388e-05,2]
[355768083,1741546247682,-910.69,9.388e-05,2]
[355768085,1741546247691,-2775.17,9.388e-05,2]
[355768087,1741546247701,-716.61,9.388e-05,2]
[355768088,1741546247710,-749.45,9.388e-05,2]
[355768089,1741546247719,-1055.07,9.388e-05,2]
[355768090,1741546247728,-223.04,9.388e-05,2]
[355768091,1741546247737,-790.29,9.388e-05,2]
[355768092,1741546247746,-500.0,9.388e-05,2]
[355768093,1741546247756,-3223.78,9.388e-05,2]
[355768094,1741546247765,-1917.15,9.388e-05,2]
[355768095,1741546247774,-500.0,9.388e-05,2]
[355768096,1741546247783,-836.6,9.388e-05,2]
[355768098,1741546247798,-150.0,9.389e-05,2]
[355768100,1741546247807,-150.0,9.389e-05,2]
[355768102,1741546247817,-150.0,9.391e-05,2]
[355768104,1741546247826,-150.0,9.392e-05,2]
[355768106,1741546247835,-150.0,9.392e-05,2]
[355768108,1741546247844,-150.0,9.395e-05,2]
[355768110,1741546247853,-150.0,9.395e-05,2]
[355768112,1741546247864,-150.0,9.396e-05,2]
[355768114,1741546247876,-150.0,9.397e-05,2]
[355768116,1741546247886,-3106.0,9.4e-05,2]
[355768118,1741546247895,-1654.34,9.4e-05,2]
[355768120,1741546247905,-150.0,9.4e-05,2]
[355768121,1741546247915,-150.0,9.4e-05,2]
[355768123,1741546247925,-368.0,9.4e-05,2]
[355768125,1741546247934,-750.0,9.4e-05,2]
[355768127,1741546247943,-232.0,9.4e-05,2]
[355768129,1741546247956,-150.0,9.401e-05,2]
[355768131,1741546247966,-150.0,9.402e-05,2]
[355768133,1741546247976,-200.02068447,9.404e-05,2]
[355768135,1741546247985,-167.0,9.404e-05,2]
[355768137,1741546247995,-246.47865696,9.404e-05,2]
[355768139,1741546248005,-168.20471877,9.404e-05,2]
[355768141,1741546248015,-150.0,9.405e-05,2]
[355768143,1741546248025,-150.0,9.405e-05,2]
[355768145,1741546248036,-150.0,9.408e-05,2]
[355768147,1741546248047,-150.0,9.41e-05,2]
[355768149,1741546248058,-150.0,9.41e-05,2]
[355768150,1741546248068,-1000.0,9.413e-05,2]
[355768152,1741546248079,-150.0,9.415e-05,2]
[355768154,1741546248090,-150.0,9.419e-05,2]
[355768156,1741546248100,-150.0,9.42e-05,2]
[355768159,1741546248110,-150.0,9.423e-05,2]
[355768161,1741546248120,-157.75550244,9.423e-05,2]
[355768162,1741546248130,-150.0,9.425e-05,2]
[355768164,1741546248140,-150.0,9.427e-05,2]
[355768167,1741546248151,-150.0,9.428e-05,2]
[355768169,1741546248161,-150.0,9.428e-05,2]
[355768171,1741546248171,-150.0,9.429e-05,2]
[355768173,1741546248180,-150.0,9.43e-05,2]
[355768175,1741546248191,-150.0,9.431e-05,2]
[355768177,1741546248202,-150.0,9.431e-05,2]
[355768179,1741546248213,-150.0,9.432e-05,2]
[355768181,1741546248223,-150.0,9.432e-05,2]
[355768183,1741546248233,-150.0,9.434e-05,2]
[355768185,1741546248244,-150.0,9.434e-05,2]
[355768187,1741546248254,-150.0,9.435e-05,2]
[355768189,1741546248265,-150.0,9.436e-05,2]
[355768191,1741546248275,-150.0,9.436e-05,2]
[355768193,1741546248286,-150.0,9.438e-05,2]
[355768195,1741546248296,-150.0,9.438e-05,2]
[355768197,1741546248305,-250.0,9.44e-05,2]
[355768199,1741546248315,-150.0,9.441e-05,2]
[355768200,1741546248325,-150.0,9.446e-05,2]
[355768202,1741546248335,-150.0,9.451e-05,2]
[355768204,1741546248345,-150.0,9.452e-05,5]
[355768205,1741546248355,-150.0,9.453e-05,2]
[355768207,1741546248364,-150.0,9.453e-05,2]
[355768208,1741546248373,-150.0,9.456e-05,2]
[355768210,1741546248383,-150.0,9.457e-05,2]
[355768212,1741546248393,-150.0,9.458e-05,2]
[355768213,1741546248403,-150.0,9.463e-05,2]
[355768215,1741546248413,-150.0,9.463e-05,2]
[355768216,1741546248423,-150.0,9.468e-05,2]
[355768218,1741546248432,-150.0,9.476e-05,2]
[355768219,1741546248441,-52302.8429,9.482e-05,2]
[355768220,1741546248450,-150.0,9.483e-05,2]
[355768222,1741546248460,-500.0,9.488e-05,2]